lending/lending_fUSD_20260222
["ID","MTS","AMOUNT","RATE_DAILY","PERIOD"]
[406318048,1771733431516,-11.66544528,0.00015721,2]
[406318049,1771733431525,-1117.04551055,0.00015721,2]
[406318050,1771733431534,-1004.62313566,0.00015721,2]
[406318051,1771733431544,-1001.62516482,0.00015721,2]
[406318052,1771733431553,-503.32852641,0.00015721,2]
[406318053,1771733431563,-1093.32806004,0.00015721,2]
[406318054,1771733431573,-1000.0,0.00015721,2]
[406318055,1771733431582,-1136.48823945,0.00015721,2]
[406318056,1771733431592,-508.91863581,0.00015721,2]
[406318057,1771733431601,-501.01096908,0.00015721,2]
[406318058,1771733431611,-500.0,0.00015721,2]
[406318059,1771733431623,-1007.9272245,0.00015721,2]
[406318060,1771733431632,-573.00614515,0.00015721,2]
[406318061,1771733431643,-500.0,0.00015721,2]
[406318062,1771733431655,-250.0,0.00016007,2]
[406318063,1771733431665,-192.0,0.00017192,2]
[406318064,1771733431675,-1680.0,0.00017278,2]
[406318066,1771733431685,-198.66323241,0.00017292,2]
[406318067,1771733431695,-194.0122658,0.00017292,2]
[406318068,1771733431704,-5000.0,0.00017292,2]
[406318069,1771733431713,-250.0,0.00017293,2]
[406318070,1771733431724,-409.90522772,0.0001793,2]
[406318071,1771733431733,-532.57,0.000185,2]
[406318072,1771733431743,-900.0,0.00018657,2]
[406318073,1771733431753,-1151.0,0.00018991,2]
[406318074,1771733431762,-369.02200372,0.00019137,2]
[406318076,1771733431772,-199.0,0.00019427,2]
[406318078,1771733431781,-378.0,0.00021695,2]
[406318080,1771733431790,-495.0,0.00021695,2]
[406318081,1771733431800,-252.0,0.00021739,2]
[406318083,1771733431809,-177.0,0.00021782,2]
[406318084,1771733431823,-486.0,0.00021825,2]
[406318085,1771733431832,-369.0,0.00021869,2]
[406318086,1771733431842,-150.0,0.00022583,2]
[406318087,1771733431853,-407.430889,0.00026032,30]
[406318089,1771733431863,-193.32,0.00026647,30]
[406318090,1771733431873,-1500.0,0.00026743,120]
[406318091,1771733431882,-7097.55,0.00027092,2]
[406318092,1771733431892,-1224.45,0.00028216,2]
[406318093,1771733431901,-500.0,0.00028403,2]
[406318094,1771733431911,-500.0,0.00028403,2]
[406318095,1771733431922,-500.0,0.00028403,2]
[406318096,1771733431931,-500.0,0.00028403,2]
[406318097,1771733431941,-151.0,0.00028403,2]
[406318098,1771733431951,-500.0,0.00028403,2]
[406318099,1771733431960,-500.0,0.00028403,2]
[406318100,1771733431970,-151.0,0.00028403,2]
[406318101,1771733431979,-500.0,0.00028403,2]
[406318102,1771733431988,-500.0,0.00028403,2]
[406318103,1771733431997,-151.0,0.00028403,2]
[406318104,1771733432007,-500.0,0.00028403,2]
[406318105,1771733432019,-500.0,0.00028403,2]
[406318106,1771733432029,-151.0,0.00028403,2]
[406318107,1771733432038,-500.0,0.00028403,2]
[406318108,1771733432046,-500.0,0.00028403,2]
[406318109,1771733432056,-151.0,0.00028403,2]
[406318110,1771733432065,-151.0,0.00028403,2]
[406318111,1771733432075,-500.0,0.00028403,2]
[406318112,1771733432084,-500.0,0.00028403,2]
[406318113,1771733432094,-151.0,0.00028403,2]
[406318114,1771733432103,-500.0,0.00028403,2]
[406318115,1771733432112,-151.0,0.00028403,2]
[406318116,1771733432122,-500.0,0.00028403,2]
[406318117,1771733432340,-155.21303795,0.00028403,2]
[406318118,1771733432351,-500.0,0.00028403,2]
[406318119,1771733432361,-500.0,0.00028403,2]
[406318120,1771733432370,-151.0,0.00028403,2]
[406318121,1771733432379,-500.0,0.00028403,2]
[406318122,1771733432388,-151.0,0.00028403,2]
[406318123,1771733432397,-500.0,0.00028403,2]
[406318124,1771733432406,-500.0,0.00028403,2]
[406318125,1771733432415,-151.0,0.00028403,2]
[406318126,1771733432423,-530.80832911,0.00028403,2]
[406318127,1771733432432,-535.47988853,0.00028403,2]
[406318128,1771733432441,-151.0,0.00028403,2]
[406318129,1771733432450,-151.0,0.00028403,2]
[406318130,1771733432459,-200.0,0.00028403,2]
[406318131,1771733432468,-151.0,0.00028403,2]
[406318132,1771733432477,-170.31988359,0.00028403,2]
[406318133,1771733432487,-151.0,0.00028403,2]
[406318134,1771733432496,-151.0,0.00028403,2]
[406318135,1771733432506,-151.0,0.00028403,2]
[406318136,1771733432516,-151.0,0.00028403,2]
[406318137,1771733432525,-151.0,0.00028403,2]
[406318138,1771733432545,-151.0,0.00028403,2]
[406318139,1771733432555,-151.0,0.00028403,2]
[406318140,1771733432564,-509.07170712,0.00028403,2]
[406318141,1771733432573,-151.0,0.00028403,2]
[406318142,1771733432583,-151.0,0.00028403,2]
[406318143,1771733432592,-151.0,0.00028403,2]
[406318144,1771733432603,-151.0,0.00028403,2]
[406318145,1771733432612,-304.47590648,0.00028403,2]
[406318146,1771733432622,-151.0,0.00028403,2]
[406318147,1771733432632,-151.0,0.00028403,2]
[406318148,1771733432642,-151.0,0.00028403,2]
[406318149,1771733432651,-151.0,0.00028403,2]
[406318150,1771733432660,-151.0,0.00028403,2]
[406318151,1771733432669,-151.0,0.00028403,2]
[406318152,1771733432679,-151.0,0.00028403,2]
[406318153,1771733432689,-151.0,0.00028403,2]
[406318154,1771733432698,-151.0,0.00028403,2]
[406318155,1771733432708,-151.0,0.00028403,2]
[406318156,1771733432717,-151.0,0.00028403,2]
[406318157,1771733432727,-151.0,0.00028403,2]
[406318158,1771733432736,-3555.4070581,0.0002842,2]
[406318159,1771733432750,-345.51780687,0.0002842,2]
[406318160,1771733432770,-3650.36757386,0.0002842,2]
[406318161,1771733432782,-300.0,0.0002842,2]
[406318167,1771733437570,-569.02134085,0.0002842,2]
[406318168,1771733437582,-956.1785563,0.0002842,2]
[406318169,1771733437593,-1058.806807,0.0002842,2]
[406318175,1771733437985,-1324.04345717,0.0002842,2]
[406318177,1771733437997,-2871.67761676,0.0002842,2]
[406318239,1771733439745,-640.70959707,0.0002842,2]
[406318240,1771733440008,-279.89771197,0.0002842,2]
[406318241,1771733440118,-7919.59247405,0.0002842,2]
[406318242,1771733440129,-1000.0,0.00028499,20]
[406318243,1771733440138,-166.29,0.00028516,2]
[406318244,1771733440148,-500.0,0.00028677,2]
[406318245,1771733440157,-500.0,0.00028951,2]
[406318246,1771733440166,-500.0,0.00029225,2]
[406318247,1771733440175,-200.0,0.00029349,20]
[406318248,1771733440187,-500.0,0.00029499,2]
[406318249,1771733440197,-622.89549501,0.00029773,2]
[406318250,1771733440206,-193.32,0.00030676,30]
[406318251,1771733440215,-881.8684969,0.00031024,2]
[406318252,1771733440224,-359.6307671,0.00031429,2]
[406318253,1771733440234,-250.0,0.00031429,2]
[406318254,1771733440243,-250.0,0.00031429,2]
[406318255,1771733440253,-250.0,0.00031429,2]
[406318256,1771733440262,-250.0,0.00031429,2]
[406318257,1771733440271,-250.0,0.00031429,2]
[406318258,1771733440280,-250.0,0.00031429,2]
[406318259,1771733440290,-250.0,0.00031429,2]
[406318260,1771733440299,-250.0,0.00031429,2]
[406318261,1771733440308,-250.0,0.00031429,2]
[406318262,1771733440317,-250.0,0.00031429,2]
[406318263,1771733440326,-250.0,0.00031429,2]
[406318264,1771733440336,-250.0,0.00031429,2]
[406318265,1771733440345,-250.0,0.00031429,2]
[406318266,1771733440355,-250.0,0.00031429,2]
[406318267,1771733440364,-250.0,0.00031429,2]
[406318268,1771733440374,-250.0,0.00031429,2]
[406318269,1771733440386,-250.0,0.00031429,2]
[406318270,1771733440395,-250.0,0.00031429,2]
[406318271,1771733440406,-250.0,0.00031429,2]
[406318272,1771733440416,-250.0,0.00031429,2]
[406318273,1771733440425,-250.0,0.00031429,2]
[406318274,1771733440435,-500.0,0.00031429,2]
[406318275,1771733440445,-500.0,0.00031429,2]
[406318276,1771733440455,-250.0,0.00031429,2]
[406318277,1771733440465,-500.0,0.00031429,2]
[406318278,1771733440474,-500.0,0.00031429,2]
[406318279,1771733440483,-500.0,0.00031429,2]
[406318280,1771733440492,-500.0,0.00031429,2]
[406318281,1771733440502,-500.0,0.00031429,2]
[406318282,1771733440512,-500.0,0.00031429,2]
[406318283,1771733440521,-500.0,0.00031429,2]
[406318284,1771733440530,-500.0,0.00031429,2]
[406318285,1771733440539,-500.0,0.00031429,2]
[406318286,1771733440548,-500.0,0.00031429,2]
[406318287,1771733440558,-500.0,0.00031429,2]
[406318288,1771733440567,-177.76974347,0.00031429,2]
[406318289,1771733440576,-721.12765535,0.00031429,2]
[406318290,1771733440586,-151.0,0.00031714,3]
[406318291,1771733440598,-151.0,0.00031714,3]
[406318292,1771733440608,-153.86500122,0.00031714,3]
[406318293,1771733440617,-693.3919763,0.00031714,3]
[406318294,1771733440627,-719.04747942,0.00031714,3]
[406318295,1771733440636,-745.65223616,0.00031714,3]
[406318296,1771733440645,-773.2413689,0.00031714,3]
[406318297,1771733440655,-801.85129955,0.00031714,3]
[406318298,1771733440664,-831.51979763,0.00031714,3]
[406318299,1771733440674,-862.28603014,0.00031714,3]
[406318300,1771733440683,-894.19061326,0.00031714,3]
[406318301,1771733440692,-927.27566595,0.00031714,3]
[406318302,1771733440701,-961.58486559,0.00031714,3]
[406318303,1771733440711,-997.16350561,0.00031714,3]
[406318304,1771733440720,-1000.0,0.00031719,2]
[406318305,1771733440729,-500.0,0.00031892,2]
[406318306,1771733440738,-325.37,0.00032126,31]
[406318307,1771733440747,-6589.25305172,0.00032339,2]
[406318308,1771733440756,-544.67732453,0.00032371,2]
[406318309,1771733440765,-623.0196369,0.00032402,2]
[406318310,1771733440775,-689.24638729,0.00032402,2]
[406318311,1771733440784,-1225.10533447,0.00032402,2]
[406318312,1771733440793,-1813.061109,0.00032472,7]
[406318313,1771733440802,-1813.061109,0.00032472,7]
[406318314,1771733440811,-1813.061109,0.00032472,7]
[406318315,1771733440821,-1813.061109,0.00032472,7]
[406318316,1771733440830,-174.949135,0.00032472,7]
[406318317,1771733440841,-174.949135,0.00032472,7]
[406318318,1771733440852,-174.949135,0.00032472,7]
[406318319,1771733440861,-174.949135,0.00032472,7]
[406318320,1771733440871,-177.979843,0.00032472,7]
[406318321,1771733440880,-177.979843,0.00032472,7]
[406318322,1771733440890,-177.979843,0.00032472,7]
[406318323,1771733440899,-177.979843,0.00032472,7]
[406318324,1771733440909,-151.0,0.00032472,7]
[406318325,1771733440919,-351.470842,0.00032472,7]
[406318326,1771733440928,-351.470842,0.00032472,7]
[406318327,1771733440937,-351.470842,0.00032472,7]
[406318328,1771733440947,-351.470842,0.00032472,7]
[406318329,1771733440956,-261.694045,0.00032472,7]
[406318330,1771733440966,-261.694045,0.00032472,7]
[406318331,1771733440975,-261.694045,0.00032472,7]
[406318332,1771733440993,-261.694045,0.00032472,7]
[406318333,1771733441003,-178.427947,0.00032472,7]
[406318334,1771733441013,-178.427947,0.00032472,7]
[406318335,1771733441024,-178.427947,0.00032472,7]
[406318336,1771733441035,-178.427947,0.00032472,7]
[406318337,1771733441045,-305.099487,0.00032472,7]
[406318338,1771733441054,-305.099487,0.00032472,7]
[406318339,1771733441063,-305.099487,0.00032472,7]
[406318340,1771733441072,-305.099487,0.00032472,7]
[406318341,1771733441081,-164.0,0.00032479,30]
[406318342,1771733441091,-300.0,0.0003249,10]
[406318343,1771733441100,-151.56284396,0.0003249,20]
[406318344,1771733441110,-1500.0,0.000325,2]
[406318345,1771733441119,-300.0,0.00032501,10]
[406318346,1771733441128,-500.0,0.00032501,2]
[406318347,1771733441138,-500.0,0.00032501,2]
[406318348,1771733441147,-240.25001287,0.00032501,2]
[406318349,1771733441157,-500.0,0.00032501,2]
[406318350,1771733441169,-270000.0,0.00032502,2]
[406318351,1771733441179,-152.505123,0.00032502,7]
[406318352,1771733441189,-151.0,0.00032502,7]
[406318353,1771733441199,-1134.2349,0.00032502,7]
[406318354,1771733441208,-151.0,0.00032502,7]
[406318355,1771733441219,-1134.2349,0.00032502,7]
[406318356,1771733441228,-1134.2349,0.00032502,7]
[406318357,1771733441238,-1134.2349,0.00032502,7]
[406318358,1771733441247,-151.0,0.00032502,7]
[406318359,1771733441257,-151.0,0.00032502,7]
[406318360,1771733441266,-151.0,0.00032502,7]
[406318361,1771733441275,-869.512043,0.00032502,7]
[406318362,1771733441285,-869.512043,0.00032502,7]
[406318363,1771733441294,-869.512043,0.00032502,7]
[406318364,1771733441304,-869.512043,0.00032502,7]
[406318365,1771733441313,-151.0,0.00032502,7]
[406318366,1771733441323,-151.0,0.00032502,7]
[406318367,1771733441332,-151.0,0.00032502,7]
[406318368,1771733441342,-151.0,0.00032502,7]
[406318369,1771733441351,-151.0,0.00032502,7]
[406318370,1771733441361,-151.0,0.00032502,7]
[406318371,1771733441374,-406.111002,0.00032502,7]
[406318372,1771733441384,-406.111002,0.00032502,7]
[406318373,1771733441393,-406.111002,0.00032502,7]
[406318374,1771733441403,-406.111002,0.00032502,7]
[406318375,1771733441412,-151.0,0.00032502,7]
[406318376,1771733441421,-151.0,0.00032502,7]
[406318377,1771733441431,-151.0,0.00032502,7]
[406318378,1771733441441,-151.0,0.00032502,7]
[406318379,1771733441451,-151.0,0.00032502,7]
[406318380,1771733441460,-151.0,0.00032502,7]
[406318381,1771733441469,-151.0,0.00032502,7]
[406318382,1771733441479,-151.0,0.00032502,7]
[406318383,1771733441488,-1813.061109,0.00032502,7]
[406318384,1771733441497,-1813.061109,0.00032502,7]
[406318385,1771733441506,-1813.061109,0.00032502,7]
[406318386,1771733441516,-1813.061109,0.00032502,7]
[406318387,1771733441525,-174.949135,0.00032502,7]
[406318388,1771733441534,-174.949135,0.00032502,7]
[406318389,1771733441543,-174.949135,0.00032502,7]
[406318390,1771733441553,-174.949135,0.00032502,7]
[406318391,1771733441566,-177.979843,0.00032502,7]
[406318392,1771733441576,-177.979843,0.00032502,7]
[406318393,1771733441586,-177.979843,0.00032502,7]
[406318394,1771733441596,-177.979843,0.00032502,7]
[406318395,1771733441606,-151.0,0.00032502,7]
[406318396,1771733441615,-351.470842,0.00032502,7]
[406318397,1771733441624,-351.470842,0.00032502,7]
[406318398,1771733441634,-351.470842,0.00032502,7]
[406318399,1771733441643,-351.470842,0.00032502,7]
[406318400,1771733441653,-261.694045,0.00032502,7]
[406318401,1771733441663,-261.694045,0.00032502,7]
[406318402,1771733441672,-261.694045,0.00032502,7]
[406318403,1771733441681,-261.694045,0.00032502,7]
[406318404,1771733441691,-151.0,0.00032502,7]
[406318405,1771733441701,-178.427947,0.00032502,7]
[406318406,1771733441711,-178.427947,0.00032502,7]
[406318407,1771733441721,-178.427947,0.00032502,7]
[406318408,1771733441731,-178.427947,0.00032502,7]
[406318409,1771733441741,-260.411559,0.00032502,7]
[406318410,1771733441750,-260.411559,0.00032502,7]
[406318411,1771733441763,-260.411559,0.00032502,7]
[406318412,1771733441772,-260.411559,0.00032502,7]
[406318413,1771733441782,-1154.043842,0.00032502,7]
[406318414,1771733441791,-1154.043842,0.00032502,7]
[406318415,1771733441801,-1154.043842,0.00032502,7]
[406318416,1771733441810,-305.099487,0.00032502,7]
[406318417,1771733441819,-1154.043842,0.00032502,7]
[406318418,1771733441829,-305.099487,0.00032502,7]
[406318419,1771733441839,-305.099487,0.00032502,7]
[406318420,1771733441852,-305.099487,0.00032502,7]
[406318421,1771733441861,-1000.0,0.00032503,2]
[406318422,1771733441871,-503.09432498,0.0003255,2]
[406318423,1771733441880,-300.0,0.00032582,10]
[406318424,1771733441890,-151.75316449,0.00032583,2]
[406318425,1771733441900,-3183.8806367,0.00032583,2]
[406318426,1771733441910,-155.90164677,0.00032583,7]
[406318427,1771733441921,-203.05900026,0.00032583,2]
[406318428,1771733441931,-150.0,0.00032583,2]
[406318429,1771733441940,-203.05900026,0.00032583,2]
[406318430,1771733441949,-151.0,0.00032584,7]
[406318431,1771733441961,-151.0,0.00032584,7]
[406318432,1771733441971,-152.7964,0.00032584,7]
[406318433,1771733441980,-151.0,0.00032584,7]
[406318434,1771733441989,-151.0,0.00032584,7]
[406318435,1771733441998,-307.72388101,0.0003259,10]
[406318436,1771733442008,-151.0,0.00032591,7]
[406318437,1771733442017,-163.113744,0.00032591,7]
[406318438,1771733442026,-1134.2349,0.00032591,7]
[406318439,1771733442035,-151.000006,0.00032591,7]
[406318440,1771733442044,-1134.2349,0.00032591,7]
[406318441,1771733442054,-1134.2349,0.00032591,7]
[406318442,1771733442064,-1134.2349,0.00032591,7]
[406318443,1771733442073,-151.0,0.00032591,7]
[406318444,1771733442084,-151.0,0.00032591,7]
[406318445,1771733442093,-151.0,0.00032591,7]
[406318446,1771733442102,-869.512043,0.00032591,7]
[406318447,1771733442112,-869.512043,0.00032591,7]
[406318448,1771733442121,-869.512043,0.00032591,7]
[406318449,1771733442130,-869.512043,0.00032591,7]
[406318450,1771733442139,-151.0,0.00032591,7]
[406318451,1771733442148,-151.0,0.00032591,7]
[406318452,1771733442360,-154.93205,0.00032591,7]
[406318453,1771733442371,-151.0,0.00032591,7]
[406318454,1771733442380,-252.20947,0.00032591,7]
[406318455,1771733442389,-406.111002,0.00032591,7]
[406318456,1771733442398,-406.111002,0.00032591,7]
[406318457,1771733442408,-406.111002,0.00032591,7]
[406318458,1771733442417,-406.111002,0.00032591,7]
[406318459,1771733442426,-151.0,0.00032591,7]
[406318460,1771733442435,-151.0,0.00032591,7]
[406318461,1771733442444,-151.0,0.00032591,7]
[406318462,1771733442453,-151.0,0.00032591,7]
[406318463,1771733442463,-151.0,0.00032591,7]
[406318464,1771733442472,-151.0,0.00032591,7]
[406318465,1771733442488,-151.0,0.00032591,7]
[406318466,1771733442500,-151.0,0.00032591,7]
[406318467,1771733442510,-1813.061109,0.00032591,7]
[406318468,1771733442520,-1813.061109,0.00032591,7]
[406318469,1771733442529,-1813.061109,0.00032591,7]
[406318470,1771733442539,-1813.061109,0.00032591,7]
[406318471,1771733442550,-174.949135,0.00032591,7]
[406318472,1771733442559,-174.949135,0.00032591,7]
[406318473,1771733442569,-174.949135,0.00032591,7]
[406318474,1771733442578,-174.949135,0.00032591,7]
[406318476,1771733442589,-177.979843,0.00032591,7]
[406318477,1771733442598,-177.979843,0.00032591,7]
[406318478,1771733442608,-177.979843,0.00032591,7]
[406318479,1771733442618,-177.979843,0.00032591,7]
[406318480,1771733442627,-151.0,0.00032591,7]
[406318482,1771733442636,-351.470842,0.00032591,7]
[406318484,1771733442647,-351.470842,0.00032591,7]
[406318486,1771733442656,-351.470842,0.00032591,7]
[406318488,1771733442666,-351.470842,0.00032591,7]
[406318490,1771733442676,-261.694045,0.00032591,7]
[406318491,1771733442686,-261.694045,0.00032591,7]
[406318492,1771733442695,-261.694045,0.00032591,7]
[406318493,1771733442704,-261.694045,0.00032591,7]
[406318494,1771733442714,-151.0,0.00032591,7]
[406318495,1771733442723,-178.427947,0.00032591,7]
[406318496,1771733442733,-178.427947,0.00032591,7]
[406318497,1771733442742,-178.427947,0.00032591,7]
[406318498,1771733442752,-178.427947,0.00032591,7]
[406318499,1771733442761,-260.411559,0.00032591,7]
[406318500,1771733442771,-260.411559,0.00032591,7]
[406318501,1771733442780,-260.411559,0.00032591,7]
[406318502,1771733442790,-260.411559,0.00032591,7]
[406318503,1771733442799,-1154.043842,0.00032591,7]
[406318504,1771733442809,-1154.043842,0.00032591,7]
[406318505,1771733442819,-1154.043842,0.00032591,7]
[406318506,1771733442828,-305.099487,0.00032591,7]
[406318507,1771733442837,-1154.043842,0.00032591,7]
[406318508,1771733442850,-305.099487,0.00032591,7]
[406318509,1771733442859,-305.099487,0.00032591,7]
[406318510,1771733442869,-305.099487,0.00032591,7]
[406318511,1771733442879,-269.29,0.000326,2]
[406318512,1771733442889,-166.66,0.00032782,30]
[406318513,1771733442899,-5000.0,0.00032903,2]
[406318514,1771733442909,-406.111002,0.0003293,31]
[406318515,1771733442921,-406.111002,0.0003293,31]
[406318516,1771733442931,-406.111002,0.0003293,31]
[406318517,1771733442941,-406.111002,0.0003293,31]
[406318518,1771733442952,-786.411472,0.0003293,2]
[406318519,1771733442961,-151.0,0.00032951,31]
[406318520,1771733442972,-151.0,0.00032951,31]
[406318521,1771733442982,-151.0,0.00032951,31]
[406318522,1771733442993,-151.0,0.00032951,31]
[406318523,1771733443003,-151.0,0.00032951,31]
[406318524,1771733443012,-151.0,0.00032951,31]
[406318525,1771733443021,-151.0,0.00032951,31]
[406318526,1771733443031,-215.891258,0.00032951,31]
[406318527,1771733443040,-1813.061109,0.00032951,31]
[406318528,1771733443050,-1813.061109,0.00032951,31]
[406318529,1771733443059,-1813.061109,0.00032951,31]
[406318530,1771733443068,-1813.061109,0.00032951,31]
[406318531,1771733443078,-174.949135,0.00032951,31]
[406318532,1771733443087,-174.949135,0.00032951,31]
[406318533,1771733443097,-174.949135,0.00032951,31]
[406318534,1771733443106,-174.949135,0.00032951,31]
[406318535,1771733443116,-177.979843,0.00032951,31]
[406318536,1771733443125,-177.979843,0.00032951,31]
[406318537,1771733443135,-177.979843,0.00032951,31]
[406318538,1771733443144,-177.979843,0.00032951,31]
[406318539,1771733443154,-190.79839504,0.00032951,28]
[406318541,1771733443163,-351.470842,0.00032951,31]
[406318543,1771733443172,-351.470842,0.00032951,31]
[406318544,1771733443183,-351.470842,0.00032951,31]
[406318546,1771733443192,-351.470842,0.00032951,31]
[406318548,1771733443204,-261.694045,0.00032951,30]
[406318549,1771733443214,-261.694045,0.00032951,30]
[406318550,1771733443225,-261.694045,0.00032951,30]
[406318551,1771733443236,-261.694045,0.00032951,30]
[406318552,1771733443246,-151.0,0.00032951,31]
[406318553,1771733443256,-178.427947,0.00032951,14]
[406318554,1771733443267,-178.427947,0.00032951,14]
[406318555,1771733443278,-178.427947,0.00032951,14]
[406318556,1771733443286,-178.427947,0.00032951,14]
[406318557,1771733443296,-260.411559,0.00032951,31]
[406318558,1771733443305,-260.411559,0.00032951,31]
[406318559,1771733443314,-260.411559,0.00032951,31]
[406318560,1771733443323,-260.411559,0.00032951,31]
[406318561,1771733443332,-1154.043842,0.00032951,31]
[406318562,1771733443342,-1154.043842,0.00032951,31]
[406318563,1771733443351,-1154.043842,0.00032951,31]
[406318564,1771733443361,-305.099487,0.00032951,7]
[406318565,1771733443370,-1154.043842,0.00032951,31]
[406318566,1771733443379,-305.099487,0.00032951,7]
[406318567,1771733443389,-305.099487,0.00032951,7]
[406318568,1771733443399,-305.099487,0.00032951,7]
[406318569,1771733443410,-150.0,0.00032984,2]
[406318570,1771733443423,-500.0,0.00032984,2]
[406318571,1771733443433,-500.0,0.00032984,2]
[406318572,1771733443443,-281.32967038,0.00032984,2]
[406318573,1771733443452,-500.0,0.00032984,2]
[406318574,1771733443461,-266.92845988,0.00032984,2]
[406318575,1771733443476,-150.0,0.00032984,2]
[406318576,1771733443496,-150.0,0.00032984,2]
[406318577,1771733443505,-500.0,0.00032984,2]
[406318578,1771733443515,-2700.59865071,0.00033,2]
[406318579,1771733443525,-151.0,0.00033003,31]
[406318580,1771733443534,-151.0,0.00033003,31]
[406318581,1771733443543,-153.963428,0.00033003,31]
[406318583,1771733443552,-151.0,0.00033003,31]
[406318585,1771733443561,-151.0,0.00033003,31]
[406318587,1771733443571,-151.0,0.00033003,31]
[406318589,1771733443580,-151.0,0.00033003,31]
[406318591,1771733443589,-151.0,0.00033003,31]
[406318593,1771733443598,-1134.2349,0.00033003,31]
[406318595,1771733443608,-1134.2349,0.00033003,31]
[406318596,1771733443617,-1134.2349,0.00033003,31]
[406318597,1771733443626,-1134.2349,0.00033003,31]
[406318598,1771733443635,-162.56435,0.00033003,31]
[406318599,1771733443644,-151.0,0.00033003,31]
[406318600,1771733443654,-151.0,0.00033003,31]
[406318601,1771733443663,-869.512043,0.00033003,31]
[406318602,1771733443672,-869.512043,0.00033003,31]
[406318603,1771733443681,-869.512043,0.00033003,31]
[406318604,1771733443691,-869.512043,0.00033003,31]
[406318605,1771733443700,-151.0,0.00033003,31]
[406318606,1771733443709,-151.0,0.00033003,31]
[406318607,1771733443718,-260.218818,0.00033003,31]
[406318608,1771733443728,-150.0,0.00033039,2]
[406318609,1771733443737,-502.74711772,0.00033039,2]
[406318610,1771733443746,-500.0,0.00033039,2]
[406318611,1771733443756,-500.0,0.00033039,2]
[406318612,1771733443765,-150.0,0.00033039,2]
[406318613,1771733443775,-162.41893801,0.00033039,2]
[406318614,1771733443784,-500.0,0.00033039,2]
[406318615,1771733443793,-406.111002,0.00033068,31]
[406318616,1771733443803,-406.111002,0.00033068,31]
[406318617,1771733443812,-406.111002,0.00033068,31]
[406318618,1771733443821,-406.111002,0.00033068,31]
[406318619,1771733443830,-166.29,0.00033082,2]
[406318620,1771733443840,-150.0,0.00033094,2]
[406318621,1771733443853,-504.2029725,0.00033094,2]
[406318622,1771733443863,-500.0,0.00033094,2]
[406318623,1771733443873,-150.0,0.00033094,2]
[406318624,1771733443883,-500.0,0.00033094,2]
[406318625,1771733443894,-150.0,0.00033148,2]
[406318626,1771733443903,-500.0,0.00033148,2]
[406318627,1771733443913,-260.23907841,0.00033148,2]
[406318628,1771733443923,-505.19837414,0.00033148,2]
[406318629,1771733443932,-1495.39161939,0.00033153,2]
[406318630,1771733443942,-151.0,0.0003318,31]
[406318631,1771733443952,-151.0,0.0003318,31]
[406318632,1771733443961,-151.0,0.0003318,31]
[406318633,1771733443971,-151.0,0.0003318,31]
[406318634,1771733443980,-151.0,0.0003318,31]
[406318635,1771733443989,-151.0,0.0003318,31]
[406318636,1771733443999,-151.0,0.0003318,31]
[406318637,1771733444008,-1813.061109,0.0003318,31]
[406318638,1771733444018,-1813.061109,0.0003318,31]
[406318639,1771733444028,-1813.061109,0.0003318,31]
[406318640,1771733444037,-1813.061115,0.0003318,31]
[406318641,1771733444047,-174.949135,0.0003318,31]
[406318642,1771733444057,-174.949135,0.0003318,31]